fUSD/lending_fUSD_20250207
["ID","MTS","AMOUNT","RATE_DAILY","PERIOD"]
[352126930,1738956641249,-500.0,0.00016438,2]
[352126931,1738956641260,-1637.13,0.00016438,2]
[352126932,1738956641269,-694.17,0.00016438,2]
[352126933,1738956641278,-500.0,0.00016438,2]
[352126934,1738956641287,-500.0,0.00016438,2]
[352126935,1738956641296,-730.01,0.00016438,2]
[352126936,1738956641305,-500.0,0.00016438,2]
[352126937,1738956641314,-500.0,0.00016438,2]
[352126938,1738956641324,-500.0,0.00016438,2]
[352126939,1738956641333,-1444.08,0.00016438,2]
[352126940,1738956641342,-500.0,0.00016438,2]
[352126941,1738956641351,-500.0,0.00016438,2]
[352126942,1738956641360,-500.0,0.00016438,2]
[352126943,1738956641369,-712.73,0.00016438,2]
[352126944,1738956641379,-512.5838802,0.00016438,2]
[352126945,1738956641388,-500.0,0.00016438,2]
[352126946,1738956641397,-500.0,0.00016438,2]
[352126948,1738956641406,-500.0,0.00016438,2]
[352126950,1738956641416,-500.0,0.00016438,2]
[352126952,1738956641425,-500.0,0.00016438,2]
[352126954,1738956641441,-500.0,0.00016438,2]
[352126956,1738956641450,-500.0,0.00016438,2]
[352126958,1738956641460,-1676.26,0.00016438,2]
[352126960,1738956641469,-500.0,0.00016438,2]
[352126962,1738956641479,-405.84,0.00016438,2]
[352126964,1738956641488,-500.0,0.00016438,2]
[352126966,1738956641497,-500.0,0.00016438,2]
[352126967,1738956641507,-500.0,0.00016438,2]
[352126969,1738956641516,-500.0,0.00016438,2]
[352126971,1738956641525,-500.0,0.00016438,2]
[352126973,1738956641535,-500.0,0.00016438,2]
[352126976,1738956641546,-500.0,0.00016438,2]
[352126978,1738956641556,-1138.99,0.00016438,2]
[352126980,1738956641567,-500.0,0.00016438,2]
[352126982,1738956641577,-500.0,0.00016438,2]
[352126984,1738956641587,-500.0,0.00016438,2]
[352126986,1738956641597,-500.0,0.00016438,2]
[352126988,1738956641606,-500.0,0.00016438,2]
[352126989,1738956641616,-500.0,0.00016438,2]
[352126991,1738956641626,-500.0,0.00016438,2]
[352126993,1738956641636,-500.0,0.00016438,2]
[352126996,1738956641648,-500.0,0.00016438,2]
[352126998,1738956641657,-1316.0,0.00016438,2]
[352127000,1738956641666,-500.0,0.00016438,2]
[352127002,1738956641675,-725.14,0.00016438,2]
[352127003,1738956641685,-500.0,0.00016438,2]
[352127005,1738956641694,-500.0,0.00016438,2]
[352127007,1738956641704,-1188.45,0.00016438,2]
[352127009,1738956641713,-349.71563042,0.00016438,2]
[352127011,1738956641722,-500.0,0.00016438,2]
[352127013,1738956641731,-500.0,0.00016438,2]
[352127015,1738956641741,-516.4,0.00016438,2]
[352127017,1738956641750,-510.03,0.00016438,2]
[352127019,1738956641760,-500.0,0.00016438,2]
[352127021,1738956641769,-500.0,0.00016438,2]
[352127023,1738956641779,-500.0,0.00016438,2]
[352127025,1738956641788,-1472.92,0.00016438,2]
[352127027,1738956641797,-500.0,0.00016438,2]
[352127029,1738956641806,-1412.12,0.00016438,2]
[352127031,1738956641815,-500.0,0.00016438,2]
[352127033,1738956641825,-500.0,0.00016438,2]
[352127035,1738956641834,-258.60833354,0.00016438,2]
[352127037,1738956641844,-529.81,0.00016438,2]
[352127039,1738956641853,-500.0,0.00016438,2]
[352127041,1738956641862,-500.0,0.00016438,2]
[352127043,1738956641872,-981.75,0.00016438,2]
[352127045,1738956641881,-520.02,0.00016438,2]
[352127047,1738956641891,-647.02,0.00016438,2]
[352127049,1738956641900,-500.0,0.00016438,2]
[352127051,1738956641909,-1033.68,0.00016438,2]
[352127053,1738956641918,-500.0,0.00016438,2]
[352127055,1738956641929,-500.0,0.00016438,2]
[352127057,1738956641938,-500.0,0.00016438,2]
[352127059,1738956641948,-522.48,0.00016438,2]
[352127061,1738956641957,-500.0,0.00016438,2]
[352127063,1738956641966,-662.32,0.00016438,2]
[352127065,1738956641975,-1353.23,0.00016438,2]
[352127067,1738956641984,-508.39,0.00016438,2]
[352127069,1738956641993,-500.0,0.00016438,2]
[352127071,1738956642002,-1634.27,0.00016438,2]
[352127073,1738956642013,-500.0,0.00016438,2]
[352127075,1738956642022,-500.0,0.00016438,2]
[352127077,1738956642031,-500.0,0.00016438,2]
[352127079,1738956642040,-544.73,0.00016438,2]
[352127081,1738956642048,-500.0,0.00016438,2]
[352127083,1738956642058,-529.48,0.00016438,2]
[352127085,1738956642067,-939.05,0.00016438,2]
[352127087,1738956642076,-1428.68,0.00016438,2]
[352127089,1738956642085,-500.0,0.00016438,2]
[352127091,1738956642095,-690.69,0.00016438,2]
[352127093,1738956642104,-1130.37,0.00016438,2]
[352127095,1738956642113,-500.0,0.00016438,2]
[352127097,1738956642123,-500.0,0.00016438,2]
[352127099,1738956642132,-1381.35,0.00016438,2]
[352127101,1738956642141,-580.24,0.00016438,2]
[352127103,1738956642150,-500.0,0.00016438,2]
[352127105,1738956642159,-500.0,0.00016438,2]
[352127107,1738956642168,-1489.45,0.00016438,2]
[352127109,1738956642177,-500.0,0.00016438,2]
[352127111,1738956642187,-500.0,0.00016438,2]
[352127113,1738956642196,-1435.35,0.00016438,2]
[352127115,1738956642205,-1168.21,0.00016438,2]
[352127117,1738956642214,-3966.24,0.00016438,2]
[352127119,1738956642223,-648.0,0.00016438,2]
[352127121,1738956642233,-1165.23,0.00016438,2]
[352127123,1738956642242,-500.0,0.00016438,2]
[352127125,1738956642251,-7619.928368,0.00016438,2]
[352127127,1738956642262,-2615.59,0.00016438,2]
[352127129,1738956642271,-500.0,0.00016438,2]
[352127131,1738956642281,-830.58,0.00016438,2]
[352127133,1738956642290,-2112.58,0.00016438,2]
[352127135,1738956642299,-500.0,0.00016438,2]
[352127137,1738956642308,-1540.26,0.00016438,2]
[352127139,1738956642318,-500.0,0.00016438,2]
[352127141,1738956642327,-7033.655455,0.00016438,2]
[352127143,1738956642336,-1751.47,0.00016438,2]
[352127145,1738956642345,-1387.93,0.00016438,2]
[352127147,1738956642354,-2850.19,0.00016438,2]
[352127149,1738956642364,-500.0,0.00016438,2]
[352127151,1738956642373,-603.96,0.00016438,2]
[352127153,1738956642383,-500.0,0.00016438,2]
[352127155,1738956642392,-2172.91,0.00016438,2]
[352127157,1738956642401,-191.528324,0.00016438,2]
[352127159,1738956642410,-500.0,0.00016438,2]
[352127161,1738956642419,-1335.8,0.00016438,2]
[352127164,1738956642428,-1670.17,0.00016438,2]
[352127166,1738956642437,-500.0,0.00016438,2]
[352127168,1738956642446,-500.0,0.00016438,2]
[352127170,1738956642455,-1813.96,0.00016438,2]
[352127173,1738956642464,-500.0,0.00016438,2]
[352127175,1738956642474,-500.0,0.00016438,2]
[352127177,1738956642483,-500.0,0.00016438,2]
[352127180,1738956642492,-1815.88,0.00016438,2]
[352127182,1738956642502,-1078.85,0.00016438,2]
[352127184,1738956642513,-305.82926915,0.00016438,2]
[352127186,1738956642523,-500.0,0.00016438,2]
[352127188,1738956642532,-500.0,0.00016438,2]
[352127190,1738956642541,-650.97,0.00016438,2]
[352127192,1738956642551,-595.285055,0.00016438,2]
[352127194,1738956642560,-1933.83,0.00016438,2]
[352127196,1738956642573,-1477.72,0.00016438,2]
[352127198,1738956642582,-520.8,0.00016438,2]
[352127200,1738956642592,-500.0,0.00016438,2]
[352127202,1738956642602,-1313.81,0.00016438,2]
[352127204,1738956642611,-618.23,0.00016438,2]
[352127206,1738956642621,-500.0,0.00016438,2]
[352127208,1738956642630,-831.306402,0.00016438,2]
[352127210,1738956642640,-2982.88,0.00016438,2]
[352127212,1738956642650,-500.0,0.00016438,2]
[352127214,1738956642660,-500.0,0.00016438,2]
[352127216,1738956642669,-500.0,0.00016438,2]
[352127218,1738956642678,-500.0,0.00016438,2]
[352127219,1738956642687,-523.72,0.00016438,2]
[352127221,1738956642696,-500.0,0.00016438,2]
[352127223,1738956642706,-572.528237,0.00016438,2]
[352127225,1738956642715,-1656.24,0.00016438,2]
[352127227,1738956642723,-3275.06,0.00016438,2]
[352127229,1738956642732,-1882.91,0.00016438,2]
[352127231,1738956642741,-972.36,0.00016438,2]
[352127233,1738956642750,-1686.85,0.00016438,2]
[352127235,1738956642760,-501.00893061,0.00016438,2]
[352127237,1738956642769,-178.252971,0.00016438,2]
[352127239,1738956642778,-993.82,0.00016438,2]
[352127241,1738956642787,-462.38062609,0.00016438,2]
[352127243,1738956642796,-2377.09,0.00016438,2]
[352127245,1738956642805,-1338.75,0.00016438,2]
[352127247,1738956642814,-500.0,0.00016438,2]
[352127249,1738956642824,-1209.72,0.00016438,2]
[352127251,1738956642832,-552.13,0.00016438,2]
[352127253,1738956642841,-3708.92,0.00016438,2]
[352127255,1738956642850,-500.0,0.00016438,2]
[352127257,1738956642859,-2135.6,0.00016438,2]
[352127259,1738956642868,-500.0,0.00016438,2]
[352127261,1738956642877,-2799.93,0.00016438,2]
[352127263,1738956642886,-2642.08,0.00016438,2]
[352127265,1738956642895,-500.0,0.00016438,2]
[352127267,1738956642904,-928.35,0.00016438,2]
[352127269,1738956642913,-560.8816589,0.00016438,2]
[352127271,1738956642922,-2130.68,0.00016438,2]
[352127273,1738956642932,-2968.87,0.00016438,2]
[352127275,1738956642941,-500.0,0.00016438,2]
[352127277,1738956642950,-500.0,0.00016438,2]
[352127279,1738956642959,-500.0,0.00016438,2]
[352127281,1738956642969,-500.0,0.00016438,2]
[352127283,1738956642978,-500.0,0.00016438,2]
[352127285,1738956642987,-4265.56,0.00016438,2]
[352127287,1738956642996,-1264.49,0.00016438,2]
[352127289,1738956643006,-500.0,0.00016438,2]
[352127291,1738956643015,-2756.51,0.00016438,2]
[352127293,1738956643025,-500.0,0.00016438,2]
[352127295,1738956643034,-1952.36,0.00016438,2]
[352127297,1738956643043,-500.0,0.00016438,2]
[352127300,1738956643052,-500.0,0.00016438,2]
[352127303,1738956643061,-2675.04,0.00016438,2]
[352127306,1738956643070,-500.0,0.00016438,2]
[352127308,1738956643079,-184.668002,0.00016438,2]
[352127310,1738956643088,-1643.06,0.00016438,2]
[352127312,1738956643097,-2535.68,0.00016438,2]
[352127314,1738956643106,-374.21631636,0.00016438,2]
[352127316,1738956643115,-2559.02,0.00016438,2]
[352127318,1738956643123,-500.0,0.00016438,2]
[352127320,1738956643132,-500.0,0.00016438,2]
[352127322,1738956643142,-982.62,0.00016438,2]
[352127323,1738956643151,-1048.24,0.00016438,2]
[352127325,1738956643160,-500.0,0.00016438,2]
[352127328,1738956643173,-652.99,0.00016438,2]
[352127330,1738956643182,-3904.04,0.00016438,2]
[352127332,1738956643192,-500.0,0.00016438,2]
[352127334,1738956643201,-634.310663,0.00016438,2]
[352127336,1738956643211,-500.0,0.00016438,2]
[352127338,1738956643220,-1687.81,0.00016438,2]
[352127340,1738956643230,-1846.01,0.00016438,2]
[352127342,1738956643240,-2899.21,0.00016438,2]
[352127344,1738956643249,-500.0,0.00016438,2]
[352127346,1738956643260,-500.0,0.00016438,2]
[352127348,1738956643270,-8054.78,0.00016438,2]
[352127350,1738956643280,-2697.16,0.00016438,2]
[352127352,1738956643289,-1537.43,0.00016438,2]
[352127354,1738956643299,-4171.0,0.00016438,2]
[352127356,1738956643309,-500.0,0.00016438,2]
[352127358,1738956643319,-500.0,0.00016438,2]
[352127360,1738956643328,-505.98373294,0.00016438,2]
[352127362,1738956643338,-162.290385,0.00016438,2]
[352127364,1738956643347,-500.7131473,0.00016438,2]
[352127366,1738956643358,-4545.2,0.00016438,2]
[352127368,1738956643367,-871.03,0.00016438,2]
[352127371,1738956643377,-500.0,0.00016438,2]
[352127373,1738956643387,-1100.92,0.00016438,2]
[352127375,1738956643396,-4717.88,0.00016438,2]
[352127376,1738956643405,-1186.63,0.00016438,2]
[352127378,1738956643415,-500.0,0.00016438,2]
[352127381,1738956643425,-778.34,0.00016438,2]
[352127383,1738956643435,-500.0,0.00016438,2]
[352127384,1738956643445,-6146.82,0.00016438,2]
[352127387,1738956643455,-1352.28,0.00016438,2]
[352127389,1738956643464,-2922.19,0.00016438,2]
[352127391,1738956643474,-500.0,0.00016438,2]
[352127393,1738956643483,-823.38,0.00016438,2]
[352127395,1738956643493,-500.0,0.00016438,2]
[352127396,1738956643503,-2029.74,0.00016438,2]
[352127399,1738956643514,-500.0,0.00016438,2]
[352127401,1738956643524,-500.0,0.00016438,2]
[352127403,1738956643534,-349.51831896,0.00016438,2]
[352127405,1738956643544,-170.16885978,0.00016438,2]
[352127407,1738956643553,-500.0,0.00016438,2]
[352127408,1738956643563,-4297.56,0.00016438,2]
[352127410,1738956643576,-4260.15,0.00016438,2]
[352127412,1738956643586,-1150.5,0.00016438,2]
[352127414,1738956643595,-260.065579,0.00016438,2]
[352127416,1738956643606,-4984.09,0.00016438,2]
[352127419,1738956643616,-500.0,0.00016438,2]
[352127421,1738956643625,-630.57,0.00016438,2]
[352127422,1738956643635,-4214.42,0.00016438,2]
[352127425,1738956643647,-1559.73,0.00016438,2]
[352127427,1738956643656,-1455.84,0.00016438,2]
[352127429,1738956643665,-1241.92,0.00016438,2]
[352127430,1738956643675,-176.086068,0.00016438,2]
[352127433,1738956643685,-2692.24,0.00016438,2]
[352127434,1738956643694,-465.89,0.00016438,2]
[352127436,1738956643704,-500.0,0.00016438,2]
[352127439,1738956643714,-500.27945313,0.00016438,2]
[352127441,1738956643723,-500.0,0.00016438,2]
[352127443,1738956643733,-500.0,0.00016438,2]
[352127445,1738956643742,-1067.17,0.00016438,2]
[352127447,1738956643752,-500.0,0.00016438,2]
[352127449,1738956643763,-320.45364755,0.00016438,2]
[352127451,1738956643773,-881.73,0.00016438,2]
[352127453,1738956643782,-3307.35,0.00016438,2]
[352127455,1738956643792,-543.13831268,0.00016438,2]
[352127457,1738956643802,-500.0,0.00016438,2]
[352127459,1738956643811,-500.0,0.00016438,2]
[352127461,1738956643821,-2646.43,0.00016438,2]
[352127463,1738956643830,-500.0,0.00016438,2]
[352127465,1738956643840,-742.64,0.00016438,2]
[352127467,1738956643850,-500.0,0.00016438,2]
[352127469,1738956643859,-548.98,0.00016438,2]
[352127478,1738956644071,-3381.29,0.00016438,2]
[352127480,1738956644081,-500.0,0.00016438,2]
[352127482,1738956644091,-500.0,0.00016438,2]
[352127484,1738956644101,-797.92,0.00016438,2]
[352127485,1738956644110,-3042.11,0.00016438,2]
[352127488,1738956644120,-553.95,0.00016438,2]
[352127490,1738956644129,-500.16136884,0.00016438,2]
[352127492,1738956644139,-500.0,0.00016438,2]
[352127494,1738956644148,-500.0,0.00016438,2]
[352127496,1738956644157,-934.841875,0.00016438,2]
[352127498,1738956644166,-527.06,0.00016438,2]
[352127499,1738956644175,-500.0,0.00016438,2]
[352127501,1738956644185,-500.0,0.00016438,2]
[352127504,1738956644194,-500.0,0.00016438,2]
[352127506,1738956644204,-501.10469126,0.00016438,2]
[352127508,1738956644213,-500.0,0.00016438,2]
[352127510,1738956644223,-1555.24,0.00016438,2]
[352127512,1738956644232,-500.0,0.00016438,2]
[352127514,1738956644242,-3666.13,0.00016438,2]
[352127516,1738956644251,-500.0,0.00016438,2]
[352127517,1738956644261,-500.0,0.00016438,2]
[352127519,1738956644270,-1049.9,0.00016438,2]
[352127521,1738956644280,-500.0,0.00016438,2]
[352127523,1738956644289,-500.0,0.00016438,2]
[352127525,1738956644299,-500.0,0.00016438,2]
[352127527,1738956644308,-500.0,0.00016438,2]
[352127529,1738956644318,-500.0,0.00016438,2]
[352127532,1738956644328,-1298.26,0.00016438,2]
[352127534,1738956644337,-500.0,0.00016438,2]
[352127536,1738956644347,-500.0,0.00016438,2]
[352127538,1738956644357,-293.45360158,0.00016438,2]
[352127539,1738956644366,-256.29763925,0.0001644,2]
[352127541,1738956644376,-256.29763925,0.0001644,2]
[352127544,1738956644386,-256.29763925,0.0001644,2]
[352127546,1738956644395,-256.29763925,0.0001644,2]
[352127548,1738956644404,-256.29763925,0.0001644,2]
[352127549,1738956644414,-256.29763925,0.0001644,2]
[352127551,1738956644423,-256.29763925,0.0001644,2]
[352127554,1738956644434,-256.29763925,0.0001644,2]
[352127555,1738956644443,-256.29763925,0.0001644,2]
[352127557,1738956644453,-256.29763925,0.0001644,2]
[352127560,1738956644463,-256.29763925,0.0001644,2]
[352127562,1738956644473,-256.29763925,0.0001644,2]
[352127564,1738956644483,-256.29763925,0.0001644,2]
[352127565,1738956644492,-256.29763925,0.0001644,2]
[352127567,1738956644501,-256.29763925,0.0001644,2]
[352127569,1738956644511,-256.29763925,0.0001644,2]
[352127571,1738956644520,-256.29763925,0.0001644,2]
[352127573,1738956644530,-256.29763925,0.0001644,2]
[352127575,1738956644540,-256.29763925,0.0001644,2]
[352127577,1738956644550,-256.29,0.0001644,2]
[352127579,1738956644562,-256.34921752,0.0001644,2]
[352127581,1738956644573,-256.34921752,0.0001644,2]
[352127583,1738956644582,-256.34921752,0.0001644,2]
[352127585,1738956644591,-256.34921752,0.0001644,2]
[352127587,1738956644600,-256.34921752,0.0001644,2]
[352127589,1738956644611,-256.34921752,0.0001644,2]
[352127591,1738956644620,-256.34921752,0.0001644,2]
[352127593,1738956644630,-256.34921752,0.0001644,2]
[352127595,1738956644640,-256.34921752,0.0001644,2]
[352127597,1738956644650,-256.34921752,0.0001644,2]
[352127599,1738956644659,-256.34921752,0.0001644,2]
[352127601,1738956644669,-256.34921752,0.0001644,2]
[352127603,1738956644678,-256.34921752,0.0001644,2]
[352127605,1738956644687,-256.34921752,0.0001644,2]
[352127607,1738956644697,-256.34921752,0.0001644,2]
[352127609,1738956644706,-256.34921752,0.0001644,2]
[352127611,1738956644717,-256.34921752,0.0001644,2]
[352127613,1738956644726,-256.34921752,0.0001644,2]
[352127615,1738956644735,-256.34921752,0.0001644,2]
[352127617,1738956644744,-256.34,0.0001644,2]
[352127619,1738956644754,-156.5452028,0.0001644,2]
[352127621,1738956644764,-156.5452028,0.0001644,2]
[352127623,1738956644774,-156.5452028,0.0001644,2]
[352127625,1738956644783,-156.5452028,0.0001644,2]
[352127627,1738956644792,-156.5452028,0.0001644,2]
[352127629,1738956644802,-156.5452028,0.0001644,2]
[352127631,1738956644811,-156.5452028,0.0001644,2]
[352127633,1738956644821,-156.5452028,0.0001644,2]
[352127635,1738956644830,-156.5452028,0.0001644,2]
[352127637,1738956644838,-156.5452028,0.0001644,2]
[352127639,1738956644848,-156.5452028,0.0001644,2]
[352127641,1738956644858,-156.5452028,0.0001644,2]
[352127642,1738956644867,-156.5452028,0.0001644,2]
[352127645,1738956644877,-156.5452028,0.0001644,2]
[352127646,1738956644886,-156.5452028,0.0001644,2]
[352127649,1738956644896,-156.5452028,0.0001644,2]
[352127651,1738956644905,-156.5452028,0.0001644,2]
[352127653,1738956644914,-156.54,0.0001644,2]
[352127655,1738956644924,-263.3656116,0.00016463,2]
[352127657,1738956644933,-324.22652512,0.00016473,2]
[352127659,1738956644942,-501.4248146,0.00016473,2]
[352127661,1738956644952,-500.0,0.00016473,2]
[352127662,1738956644961,-300.0,0.00016479,2]
[352127664,1738956644970,-5244509.94851578,0.0001648,2]
[352127667,1738956644980,-150.0,0.00016528,2]
[352127669,1738956644989,-150.0,0.00016531,2]
[352127670,1738956644999,-150.0,0.00016534,2]
[352127673,1738956645009,-150.66417334,0.00016541,2]
[352127675,1738956645018,-150.0,0.00016556,2]
[352127676,1738956645027,-150.0,0.00016558,2]
[352127679,1738956645037,-150.0,0.00016563,2]
[352127681,1738956645047,-150.0,0.00016566,2]
[352127682,1738956645056,-150.0,0.00016567,2]
[352127685,1738956645066,-150.0,0.0001657,2]
[352127686,1738956645076,-301.9881289,0.00016573,2]
[352127689,1738956645085,-500.0,0.00016573,2]
[352127691,1738956645095,-316.06270134,0.00016573,2]
[352127693,1738956645104,-207.06698277,0.00016573,2]
[352127695,1738956645115,-500.0,0.00016573,2]
[352127697,1738956645124,-325.33342713,0.00016573,2]
[352127699,1738956645133,-500.0,0.00016573,2]
[352127701,1738956645143,-629.0,0.00016573,2]
[352127702,1738956645152,-500.0,0.00016573,2]
[352127704,1738956645161,-500.0,0.00016573,2]
[352127707,1738956645171,-500.0,0.00016573,2]
[352127709,1738956645181,-500.0,0.00016573,2]
[352127711,1738956645191,-500.0,0.00016573,2]
[352127712,1738956645200,-500.0,0.00016573,2]
[352127714,1738956645210,-500.0,0.00016573,2]
[352127716,1738956645219,-500.0,0.00016573,2]
[352127718,1738956645229,-500.27,0.00016573,2]
[352127720,1738956645239,-500.0,0.00016573,2]
[352127722,1738956645248,-500.0,0.00016573,2]
[352127724,1738956645259,-500.0,0.00016573,2]
[352127726,1738956645269,-500.0,0.00016573,2]
[352127729,1738956645279,-500.0,0.00016573,2]
[352127731,1738956645289,-500.0,0.00016573,2]
[352127733,1738956645299,-500.0,0.00016573,2]
[352127735,1738956645309,-500.0,0.00016573,2]
[352127736,1738956645319,-500.0,0.00016573,2]
[352127739,1738956645329,-500.0,0.00016573,2]
[352127741,1738956645339,-500.0,0.00016573,2]
[352127742,1738956645348,-500.0,0.00016573,2]
[352127745,1738956645359,-500.0,0.00016573,2]
[352127747,1738956645370,-507.53986465,0.00016573,2]
[352127748,1738956645380,-500.0,0.00016573,2]
[352127750,1738956645390,-500.0,0.00016573,2]
[352127753,1738956645400,-500.0,0.00016573,2]
[352127755,1738956645410,-500.0,0.00016573,2]
[352127756,1738956645419,-500.0,0.00016573,2]
[352127759,1738956645429,-500.0,0.00016573,2]
[352127761,1738956645439,-500.0,0.00016573,2]
[352127763,1738956645449,-500.0,0.00016573,2]
[352127765,1738956645459,-500.0,0.00016573,2]
[352127768,1738956645470,-500.0,0.00016573,2]
[352127770,1738956645479,-500.0,0.00016573,2]
[352127772,1738956645491,-415.34467032,0.00016573,2]
[352127774,1738956645500,-500.0,0.00016573,2]
[352127776,1738956645510,-500.0,0.00016573,2]
[352127778,1738956645519,-500.0,0.00016573,2]
[352127780,1738956645529,-500.0,0.00016573,2]
[352127782,1738956645539,-500.0,0.00016573,2]
[352127784,1738956645548,-500.0,0.00016573,2]
[352127786,1738956645559,-500.0,0.00016573,2]
[352127788,1738956645569,-500.0,0.00016573,2]
[352127789,1738956645578,-500.0,0.00016573,2]
[352127792,1738956645588,-500.0,0.00016573,2]
[352127794,1738956645597,-500.0,0.00016573,2]
[352127796,1738956645607,-500.0,0.00016573,2]
[352127798,1738956645617,-500.0,0.00016573,2]
[352127800,1738956645626,-500.0,0.00016573,2]
[352127802,1738956645635,-500.0,0.00016573,2]
[352127804,1738956645648,-500.0,0.00016573,2]
[352127806,1738956645657,-412.66343333,0.00016573,2]
[352127808,1738956645666,-500.0,0.00016573,2]
[352127810,1738956645676,-500.0,0.00016573,2]
[352127812,1738956645685,-500.0,0.00016573,2]
[352127814,1738956645694,-500.0,0.00016573,2]
[352127816,1738956645703,-500.0,0.00016573,2]
[352127818,1738956645713,-500.0,0.00016573,2]
[352127820,1738956645723,-500.0,0.00016573,2]
[352127822,1738956645733,-500.0,0.00016573,2]
[352127824,1738956645743,-500.0,0.00016573,2]
[352127826,1738956645752,-500.0,0.00016573,2]
[352127828,1738956645761,-500.0,0.00016573,2]
[352127830,1738956645771,-500.0,0.00016573,2]
[352127831,1738956645780,-500.0,0.00016573,2]
[352127833,1738956645790,-606.42975009,0.00016573,2]
[352127835,1738956645799,-358.04160147,0.00016573,2]
[352127837,1738956645808,-500.0,0.00016573,2]
[352127838,1738956645818,-500.0,0.00016573,2]
[352127840,1738956645827,-500.0,0.00016573,2]
[352127842,1738956645836,-160.70695388,0.00016573,2]
[352127844,1738956645846,-500.0,0.00016573,2]
[352127846,1738956645855,-500.0,0.00016573,2]
[352127848,1738956645864,-500.0,0.00016573,2]
[352127850,1738956645874,-500.0,0.00016573,2]
[352127852,1738956645883,-500.0,0.00016573,2]
[352127854,1738956645892,-500.0,0.00016573,2]
[352127856,1738956645901,-500.0,0.00016573,2]
[352127858,1738956645911,-500.0,0.00016573,2]
[352127860,1738956645921,-500.0,0.00016573,2]
[352127862,1738956645931,-500.0,0.00016573,2]
[352127864,1738956645940,-526.37942355,0.00016573,2]
[352127866,1738956645949,-500.0,0.00016573,2]
[352127868,1738956645959,-501.65988713,0.00016573,2]
[352127870,1738956645968,-500.0,0.00016573,2]
[352127872,1738956645977,-500.0,0.00016573,2]
[352127874,1738956645986,-500.0,0.00016573,2]
[352127876,1738956645996,-500.0,0.00016573,2]
[352127878,1738956646005,-500.0,0.00016573,2]
[352127880,1738956646016,-500.0,0.00016573,2]
[352127882,1738956646025,-500.0,0.00016573,2]
[352127884,1738956646036,-500.0,0.00016573,2]
[352127886,1738956646045,-500.0,0.00016573,2]
[352127888,1738956646055,-500.0,0.00016573,2]
[352127890,1738956646063,-500.0,0.00016573,2]
[352127892,1738956646073,-500.0,0.00016573,2]
[352127894,1738956646082,-500.0,0.00016573,2]
[352127896,1738956646091,-500.0,0.00016573,2]
[352127899,1738956646101,-158.204205,0.00016573,2]
[352127902,1738956646110,-500.0,0.00016573,2]
[352127905,1738956646119,-500.0,0.00016573,2]
[352127908,1738956646128,-500.0,0.00016573,2]
[352127911,1738956646137,-500.0,0.00016573,2]
[352127914,1738956646147,-500.0,0.00016573,2]
[352127917,1738956646156,-500.0,0.00016573,2]
[352127920,1738956646165,-500.0,0.00016573,2]
[352127923,1738956646175,-500.0,0.00016573,2]
[352127926,1738956646184,-500.0,0.00016573,2]
[352127929,1738956646193,-500.0,0.00016573,2]
[352127932,1738956646202,-500.0,0.00016573,2]
[352127934,1738956646212,-500.0,0.00016573,2]